fUSD/lending_fUSD_20240331
["ID","MTS","AMOUNT","RATE_DAILY","PERIOD"]
[321138672,1711907500562,-252.0,0.00063,119]
[321138673,1711907500571,-574.97478898,0.00063009,120]
[321138674,1711907500581,-231.65550776,0.00063009,120]
[321138675,1711907500592,-231.25209964,0.00063009,120]
[321138676,1711907500602,-150.0,0.00063022,30]
[321138677,1711907500612,-156.88772141,0.00063175,120]
[321138678,1711907500621,-1000.0,0.00063242,120]
[321138679,1711907500631,-2592.0,0.00063297,84]
[321138680,1711907500641,-22190.09865976,0.00063299,2]
[321138681,1711907500651,-124921.66629502,0.000633,120]
[321138682,1711907500661,-201.02051,0.000633,120]
[321138683,1711907500670,-1139.0,0.00063303,120]
[321138684,1711907500680,-162.85775373,0.0006335,120]
[321138685,1711907500689,-170.65073738,0.00063358,7]
[321138686,1711907500699,-150.0,0.00063379,30]
[321138687,1711907500709,-252.0,0.000635,120]
[321138688,1711907500719,-300.0,0.000635,120]
[321138689,1711907500729,-574.97478898,0.00063508,120]
[321138690,1711907500739,-231.65550776,0.00063508,120]
[321138691,1711907500749,-231.25209964,0.00063508,120]
[321138692,1711907500759,-150.0,0.00063588,30]
[321138693,1711907500769,-150.0,0.00063592,30]
[321138694,1711907500779,-50321.999999,0.000636,120]
[321138695,1711907500789,-300.0,0.000636,120]
[321138696,1711907500799,-150.0,0.00063683,30]
[321138697,1711907500810,-300.0,0.000637,120]
[321138698,1711907500820,-150.0,0.00063723,30]
[321138699,1711907500830,-7236.12352633,0.000638,120]
[321138700,1711907500841,-300.0,0.000638,120]
[321138701,1711907500851,-536.78008169,0.000638,67]
[321138702,1711907500861,-150.0,0.00063805,30]
[321138703,1711907500871,-2492.4,0.0006383,117]
[321138704,1711907500881,-151.0,0.00063836,120]
[321138705,1711907500892,-152.0,0.00063858,3]
[321138706,1711907500902,-150.0,0.00063882,30]
[321138707,1711907500911,-2391.36,0.00063899,120]
[321138708,1711907500922,-5000.0,0.000639,120]
[321138709,1711907500932,-300.0,0.000639,120]
[321138710,1711907500942,-318.37388614,0.000639,14]
[321138711,1711907500952,-150.0,0.00063951,30]
[321138712,1711907500962,-221.5,0.0006398,15]
[321138713,1711907500973,-186.0,0.0006398,15]
[321138714,1711907500983,-200.58105718,0.0006399,90]
[321138715,1711907500993,-1000.0,0.0006399,2]
[321138716,1711907501003,-1000.0,0.0006399,2]
[321138717,1711907501012,-1000.0,0.0006399,2]
[321138718,1711907501022,-1000.0,0.0006399,2]
[321138719,1711907501033,-1000.0,0.0006399,2]
[321138720,1711907501043,-1000.0,0.0006399,2]
[321138721,1711907501053,-1000.0,0.0006399,2]
[321138722,1711907501063,-1000.0,0.0006399,2]
[321138723,1711907501073,-1000.0,0.0006399,2]
[321138724,1711907501083,-1000.0,0.0006399,2]
[321138725,1711907501093,-1000.0,0.0006399,2]
[321138726,1711907501103,-1000.0,0.0006399,2]
[321138727,1711907501113,-1000.0,0.0006399,2]
[321138728,1711907501123,-1000.0,0.0006399,2]
[321138729,1711907501132,-1000.0,0.0006399,2]
[321138730,1711907501142,-1000.0,0.0006399,2]
[321138731,1711907501152,-1000.0,0.0006399,2]
[321138732,1711907501161,-1000.0,0.0006399,2]
[321138733,1711907501171,-1000.0,0.0006399,2]
[321138734,1711907501181,-1000.0,0.0006399,2]
[321138735,1711907501191,-489.66840981,0.0006399,2]
[321138736,1711907501201,-150.5,0.0006399,15]
[321138737,1711907501211,-186.0,0.0006399,15]
[321138738,1711907501222,-21306.8689867,0.00063995,3]
[321138739,1711907501232,-2872894.10122835,0.00063997,120]
[321138740,1711907501460,-2998529.10275211,0.00063997,120]
[321138741,1711907501478,-895.49,0.00059999,120]
[321138742,1711907501488,-650.42662609,0.00063997,120]
[321138743,1711907501504,-296.43501175,0.00056438,120]
[321138744,1711907501517,-203.56498825,0.00056438,120]
[321138745,1711907501527,-1304.72170016,0.00063997,120]
[321138746,1711907501546,-500.0,0.00054794,120]
[321138747,1711907501556,-571.65990267,0.00063997,120]
[321138748,1711907501866,-187.828539,0.00053935,120]
[321138749,1711907501876,-551.28,0.00054794,120]
[321138750,1711907501887,-500.0,0.00054794,120]
[321138751,1711907501897,-500.0,0.00054794,120]
[321138752,1711907501908,-187.828539,0.00054794,120]
[321138753,1711907501918,-500.0,0.00054794,120]
[321138754,1711907501928,-187.828539,0.00054794,120]
[321138755,1711907501939,-500.0,0.00055068,120]
[321138756,1711907501949,-551.28,0.00055068,120]
[321138757,1711907501958,-500.0,0.00055068,120]
[321138758,1711907501969,-500.0,0.00055068,120]
[321138759,1711907501979,-500.0,0.00055068,120]
[321138760,1711907501988,-187.828539,0.00055068,120]
[321138761,1711907501999,-551.28,0.00055342,120]
[321138762,1711907502010,-500.0,0.00055342,120]
[321138763,1711907502021,-500.0,0.00055342,120]
[321138764,1711907502033,-500.0,0.00055616,120]
[321138765,1711907502043,-551.28,0.00055616,120]
[321138766,1711907502053,-500.34,0.00055616,120]
[321138767,1711907502064,-415.96,0.0005589,120]
[321138768,1711907502075,-551.28,0.0005589,120]
[321138769,1711907502086,-551.28,0.00056164,120]
[321138770,1711907502098,-551.28,0.00056438,120]
[321138771,1711907502110,-336.95318326,0.00056712,120]
[321138772,1711907502121,-150.68,0.00056712,120]
[321138773,1711907502131,-551.28,0.00056712,120]
[321138774,1711907502141,-551.28,0.00056986,120]
[321138775,1711907502152,-551.28,0.0005726,120]
[321138776,1711907502162,-551.28,0.00057534,120]
[321138777,1711907502174,-551.28,0.00057808,120]
[321138778,1711907502185,-551.28,0.00058082,120]
[321138779,1711907502196,-551.28,0.00058356,120]
[321138780,1711907502206,-551.28,0.0005863,120]
[321138781,1711907502216,-551.28,0.00058904,120]
[321138782,1711907502227,-551.28,0.00059178,120]
[321138783,1711907502237,-744.4,0.00059452,120]
[321138784,1711907502248,-744.4,0.00059726,120]
[321138785,1711907502258,-744.4,0.00059999,120]
[321138786,1711907502267,-895.49,0.00060273,120]
[321138787,1711907502278,-744.4,0.00060273,120]
[321138788,1711907502288,-895.49,0.00060547,120]
[321138789,1711907502298,-744.4,0.00060547,120]
[321138790,1711907502308,-895.49,0.00060821,120]
[321138791,1711907502318,-744.4,0.00060821,120]
[321138792,1711907502329,-895.64,0.00061095,120]
[321138793,1711907502343,-744.6,0.00061095,120]
[321138794,1711907502353,-70806.62044603,0.00063997,120]
[321138795,1711907502364,-194.73994527,0.00063998,7]
[321138796,1711907502374,-2770.51065683,0.00063998,7]
[321138797,1711907502385,-1102.12586054,0.00063998,7]
[321138798,1711907502396,-42471.86444199,0.00063998,2]
[321138799,1711907502406,-679.70928386,0.00063998,4]
[321138800,1711907502416,-1000.0,0.00063999,120]
[321138801,1711907502426,-300.02,0.00063999,120]
[321138802,1711907502437,-740.63100827,0.00063999,120]
[321138803,1711907502447,-139.92977453,0.00064,64]
[321138804,1711907502511,-27020.95217766,0.00064,64]
[321138805,1711907502533,-551.28,0.00059452,120]
[321138806,1711907502544,-2834.19524336,0.00064,64]
[321138807,1711907502730,-187.828539,0.00053935,120]
[321138808,1711907502741,-98.85815769,0.00054794,120]
[321138809,1711907504154,44508.36401532,0.00025,2]
[321138810,1711907504186,213295.39603214,0.00025,2]
[321138811,1711907504211,11000.0,0.00025,2]
[321138812,1711907504235,2000000.0,0.00025,2]
[321138813,1711907504256,894351.80039221,0.00025,2]
[321138814,1711907504341,8662.82067599,0.000154,2]
[321138815,1711907505060,359.20495934,9e-05,2]
[321138816,1711907505558,362.34591698,0.0001,2]
[321138817,1711907516363,179.28699999,0.00015,10]
[321138824,1711907550985,150.0,0.00015,2]
[321138825,1711907551006,150.0,0.00015,2]
[321138826,1711907551026,150.0,0.00015,2]
[321138827,1711907551046,150.0,0.00015,2]
[321138828,1711907551066,150.0,0.00015,2]
[321138829,1711907551086,150.0,0.00015,2]
[321138830,1711907551107,150.0,0.00015,2]
[321138831,1711907551127,150.0,0.00015,2]
[321138832,1711907551148,113.41229281,0.00015,2]
[321138835,1711907561315,150.0,0.00015,2]
[321138836,1711907561338,300.0,0.00015,2]
[321138837,1711907567263,480.52307215,0.00021,2]
[321138838,1711907570885,150.0,0.0001455,2]
[321138839,1711907570906,78.01510559,0.0001455,2]
[321138840,1711907581377,150.0,0.00021,2]
[321138841,1711907581397,5.62212824,0.00021,2]
[321138842,1711907587230,300.0,0.00021,2]
[321138843,1711907599764,150.0,0.0001305,2]
[321138844,1711907599784,150.0,0.0001305,2]
[321138845,1711907599804,150.0,0.0001305,2]
[321138846,1711907599824,150.0,0.0001305,2]
[321138847,1711907599844,150.0,0.0001305,2]
[321138848,1711907599866,3998.56365668,0.0001305,2]
[321138849,1711907600343,150.0,0.000101,2]
[321138850,1711907600368,91.56399971,0.000101,2]
[321138851,1711907609242,1050.0,0.00021,2]
[321138852,1711907609842,1485.96916859,0.00024,30]
[321138855,1711907638402,1090134.74132665,0.00025,2]
[321138856,1711907638426,851294.28830172,0.00025,2]
[321138861,1711907669213,150.0,0.00015,2]
[321138862,1711907669233,150.0,0.00015,2]
[321138863,1711907669253,150.0,0.00015,2]
[321138864,1711907669272,150.0,0.00015,2]
[321138865,1711907669291,150.0,0.00015,2]
[321138866,1711907669310,150.0,0.00015,2]
[321138867,1711907669329,150.0,0.00015,2]
[321138868,1711907669348,150.0,0.00015,2]
[321138869,1711907669367,150.0,0.00015,2]
[321138870,1711907669387,150.0,0.00015,2]
[321138871,1711907669407,150.0,0.00015,2]
[321138872,1711907669428,150.0,0.00015,2]
[321138873,1711907669447,150.0,0.00015,2]
[321138874,1711907669467,150.0,0.00015,2]
[321138875,1711907669486,150.0,0.00015,2]
[321138876,1711907669506,215.62185404,0.00015,2]
[321138877,1711907669528,15144.18882379,0.00015,2]
[321138880,1711907673225,372.00413399,0.00022,2]
[321138882,1711907675983,299.999999,0.0002415,2]
[321138889,1711907682542,245.69720265,0.0002,2]
[321138893,1711907687330,2045.69720265,0.00025,2]
[321138898,1711907831078,1259.083791,0.00025,2]
[321138899,1711908132486,155.0,0.0002375,2]
[321138900,1711908135047,203.45219,0.00025,2]
[321138920,1711908381397,1025.43958869,0.00025,2]
[321138934,1711908466878,-1000.0,0.00026891,2]
[321138935,1711908466899,-366.31207375,0.00026892,2]
[321138936,1711908466921,-160.66751413,0.000269,2]
[321138937,1711908466941,-1332.09593123,0.00026991,2]
[321138938,1711908466961,-155.60551976,0.00027,2]
[321138961,1711908619236,-190.0,0.00036389,10]
[321138962,1711908631994,-250.0,0.00036719,112]
[321138974,1711908632409,-1520.40870823,0.0002999,2]
[321138975,1711908632432,-350.0,0.00033,3]
[321138976,1711908632454,-150.0,0.00034998,3]
[321138977,1711908632477,-1000.0,0.00034999,4]
[321138978,1711908632500,-400.0,0.00035,3]
[321138979,1711908632522,-250.0,0.00036078,2]
[321138980,1711908632545,-23870.0,0.00036155,2]
[321138981,1711908632565,-150.86,0.00036326,2]
[321138982,1711908632575,-0.26,0.00036389,10]
[321138983,1711908632584,-250.0,0.000364,2]
[321138984,1711908632594,-200.0,0.00036413,2]
[321138985,1711908632603,-937.24,0.00036444,2]
[321138986,1711908632613,-6573.42,0.00036444,2]
[321138987,1711908632623,-150.99,0.00036444,2]
[321138988,1711908632632,-467.68,0.00036667,2]
[321138989,1711908632642,-1314.01,0.00036899,2]
[321138990,1711908632652,-153.28365447,0.000369,2]
[321138991,1711908632662,-178.67429213,0.000369,2]
[321138992,1711908632672,-499.99,0.000369,2]
[321138993,1711908632683,-4394.57843404,0.000369,2]
[321138994,1711908632693,-34593.12246807,0.000369,2]
[321138995,1711908632702,-301.14880043,0.000369,2]
[321138996,1711908632712,-381.04,0.00036905,2]
[321138997,1711908632721,-150.5,0.00036968,15]
[321138998,1711908632730,-150.5,0.00036968,15]
[321138999,1711908632739,-150.5,0.00036978,15]
[321139000,1711908632749,-150.5,0.00036978,15]
[321139001,1711908632758,-150.5,0.00036988,15]
[321139002,1711908632767,-150.5,0.00036988,15]
[321139003,1711908632777,-162.77396038,0.00036995,2]
[321139004,1711908632786,-157.05031671,0.00036996,4]
[321139005,1711908632795,-291.67999743,0.00036996,4]
[321139006,1711908632804,-280.18590992,0.00036997,4]
[321139007,1711908632813,-218.05642744,0.00036997,4]
[321139008,1711908632823,-268141.46165805,0.00036998,2]
[321139009,1711908632835,-12559.46319905,0.00036998,2]
[321139010,1711908632846,-3714.37943625,0.00036998,2]
[321139011,1711908632858,-6481.68123966,0.00036998,2]
[321139012,1711908632869,-1694.33,0.00036998,2]
[321139013,1711908632881,-1746.71282858,0.00036998,2]
[321139014,1711908632893,-816.16773,0.00036998,2]
[321139015,1711908632904,-1078.46,0.00036998,2]
[321139016,1711908632915,-1259.083791,0.00036998,2]
[321139017,1711908632928,-647.77,0.00036998,2]
[321139018,1711908633000,-8186.07139352,0.00036998,2]
[321139032,1711908638346,-257.64,0.00029989,2]
[321139033,1711908638751,-19089.78428502,0.00029989,2]
[321139034,1711908638764,-1933850.74227161,0.00036998,2]
[321139035,1711908638774,-49801.43814655,0.00037,4]
[321139036,1711908638784,-450.0,0.00037,3]
[321139037,1711908638793,-500.0,0.00037176,2]
[321139038,1711908638803,-29008.62360471,0.000372,2]
[321139039,1711908638812,-1551.67,0.00037318,2]
[321139040,1711908638822,-290.29,0.00037318,2]
[321139041,1711908638832,-214.29,0.00037735,2]
[321139043,1711908638842,-250.0,0.00037808,2]
[321139045,1711908638851,-157.82,0.00038027,15]
[321139046,1711908638861,-169.46,0.00038149,2]
[321139048,1711908638870,-174.14,0.00038283,2]
[321139051,1711908638882,-199.0,0.00038498,5]
[321139053,1711908638892,-500.0,0.00039,3]
[321139054,1711908638901,-381.04,0.00039169,2]
[321139056,1711908638911,-245.39,0.00039553,2]
[321139059,1711908638920,-4394.57843402,0.000399,2]
[321139061,1711908638930,-34593.12246807,0.000399,2]
[321139063,1711908638940,-192.22165366,0.0004,2]
[321139065,1711908638949,-472.4,0.0004,2]
[321139067,1711908638959,-500.0,0.0004,2]
[321139069,1711908638968,-167.67,0.00040286,2]
[321139071,1711908638978,-160.0,0.00040889,30]
[321139073,1711908638988,-212.75616934,0.00041081,13]
[321139075,1711908638998,-177.67,0.00041096,2]
[321139077,1711908639008,-1986.0,0.00041096,5]
[321139079,1711908639017,-591.75,0.00041171,2]
[321139081,1711908639027,-381.04,0.00041433,2]
[321139083,1711908639267,-1000.0,0.0004144,2]
[321139084,1711908639277,-170.65073738,0.00041638,4]
[321139085,1711908639286,-2329.31253438,0.00041935,2]
[321139086,1711908639295,-167.81686114,0.00041935,2]
[321139087,1711908639305,-197.02803669,0.00041935,2]
[321139088,1711908639314,-178.67429213,0.00041981,2]
[321139089,1711908639323,-61671.89130303,0.00042035,2]
[321139090,1711908639332,-3208.84640533,0.00042035,2]
[321139091,1711908639341,-193.49438796,0.00042035,2]
[321139092,1711908639350,-7006.08511232,0.00042035,2]
[321139093,1711908639359,-2597.66669845,0.00042035,2]
[321139094,1711908639368,-6065.93291967,0.00042035,2]
[321139095,1711908639377,-24408.54954823,0.00042035,2]
[321139096,1711908639386,-156.09764906,0.00042035,2]
[321139097,1711908639396,-479.24787887,0.00042035,2]
[321139098,1711908639406,-1184152.83208135,0.00042035,7]
[321139099,1711908639415,-436.46975996,0.00042035,2]
[321139100,1711908639424,-1036.29166687,0.00042035,2]
[321139101,1711908639433,-2500.0,0.00042035,2]
[321139102,1711908639442,-562.78055981,0.00042035,2]
[321139103,1711908639451,-2311.81680079,0.00042035,2]
[321139104,1711908639460,-233.80346046,0.00042035,2]
[321139105,1711908639469,-1596.33824723,0.00042035,2]
[321139106,1711908639478,-1065.7852371,0.00042035,7]
[321139107,1711908639487,-523.54471295,0.00042035,2]
[321139108,1711908639496,-886.3753014,0.00042035,2]
[321139109,1711908639505,-9258.00764253,0.00042035,2]
[321139110,1711908639514,-467.77328392,0.00042035,2]
[321139111,1711908639523,-384.4238418,0.00042035,2]
[321139112,1711908639532,-240.08105957,0.00042035,2]
[321139113,1711908639541,-23853.83877731,0.00042035,14]
[321139114,1711908639551,-1115.98769307,0.00042035,10]
[321139115,1711908639560,-1763.48197311,0.00042035,2]
[321139116,1711908639570,-1374.98423013,0.00042035,10]
[321139117,1711908639579,-532.03852694,0.00042035,2]
[321139118,1711908639588,-4898.13681948,0.00042035,2]
[321139119,1711908639597,-738.85617067,0.00042035,10]
[321139120,1711908639607,-353.91956168,0.00042035,2]
[321139121,1711908639616,-591.63747715,0.00042035,2]
[321139122,1711908639625,-3032.09827416,0.00042035,7]
[321139123,1711908639635,-192.28621157,0.00042035,7]
[321139124,1711908639646,-18936.72762934,0.00042035,3]
[321139125,1711908639656,-1784.70607232,0.00042035,2]
[321139126,1711908639665,-3832.89479173,0.00042035,3]
[321139127,1711908639674,-118049.07905891,0.00042035,14]
[321139128,1711908639688,-337.06952388,0.00042035,2]
[321139129,1711908639697,-1329.81484633,0.00042035,20]
[321139130,1711908639706,-5028.66795686,0.00042035,2]
[321139131,1711908639715,-1051.66325488,0.00042035,7]
[321139132,1711908639725,-1458.40708415,0.00042035,14]
[321139133,1711908639734,-204.69310846,0.00042035,5]
[321139134,1711908639744,-1003.6667417,0.00042035,2]
[321139135,1711908639753,-213.89584315,0.00042035,2]
[321139136,1711908639764,-636.29558818,0.00042035,2]
[321139137,1711908639774,-1002.79407176,0.00042035,2]
[321139138,1711908639784,-100000.0,0.0004206,2]
[321139139,1711908639794,-161.39,0.000421,7]
[321139140,1711908639803,-157.82,0.00042137,15]
[321139141,1711908639813,-355.4595,0.00042159,4]
[321139142,1711908639823,-213.94,0.000422,7]
[321139143,1711908639835,-150.86,0.00042472,2]
[321139144,1711908639845,-4394.57843402,0.000429,2]
[321139145,1711908639855,-34593.12246807,0.000429,2]
[321139146,1711908639865,-250.0,0.00043028,2]
[321139147,1711908639875,-214.29,0.00043214,2]
[321139148,1711908639884,-155.39690538,0.00043423,30]
[321139149,1711908639895,-381.04,0.00043697,2]
[321139150,1711908639904,-156.72357875,0.00043941,30]
[321139151,1711908639914,-155.5561422,0.00044357,30]
[321139152,1711908639923,-153.88547331,0.00044413,30]
[321139153,1711908639932,-1033.54737467,0.00045,120]
[321139154,1711908639944,-328.07527769,0.00045,4]
[321139155,1711908639953,-1087.38,0.00045125,2]
[321139156,1711908639962,-4394.57843402,0.000459,2]
[321139157,1711908639972,-34593.12246807,0.000459,2]
[321139158,1711908639982,-381.04,0.0004596,2]
[321139159,1711908639991,-157.82,0.00046247,15]
[321139160,1711908640001,-1000.0,0.0004662,2]
[321139161,1711908640011,-153.89085593,0.0004664,30]
[321139162,1711908640021,-161.37966255,0.00046921,30]
[321139163,1711908640030,-151.0,0.00048,120]
[321139164,1711908640039,-381.04,0.00048224,2]
[321139165,1711908640048,-250.0,0.00048248,2]
[321139166,1711908640058,-1551.67,0.00048551,120]
[321139167,1711908640067,-150.86,0.00048617,2]
[321139168,1711908640076,-19862.65072674,0.000487,2]
[321139169,1711908640086,-4394.57843402,0.000489,2]
[321139170,1711908640095,-34593.12246807,0.000489,2]
[321139171,1711908640104,-393.41585757,0.00049,120]
[321139172,1711908640114,-151.0,0.00049014,120]
[321139173,1711908640123,-155.39690538,0.0004912,30]
[321139174,1711908640132,-1000.0,0.00049315,60]
[321139175,1711908640142,-2844.03657921,0.0005,10]
[321139176,1711908640152,-22664.54756298,0.0005,4]
[321139177,1711908640161,-427.1946635,0.0005,28]
[321139178,1711908640171,-151.0,0.0005,120]
[321139179,1711908640181,-505.0,0.0005,9]
[321139180,1711908640190,-151.0,0.00050027,120]
[321139181,1711908640199,-1000.0,0.00050136,64]
[321139182,1711908640208,-156.72357875,0.00050272,60]
[321139183,1711908640217,-157.82,0.00050356,120]
[321139184,1711908640229,-381.04,0.00050488,2]
[321139185,1711908640238,-166.66666667,0.00050786,60]
[321139187,1711908640248,-629.06519628,0.00050958,68]
[321139188,1711908640257,-213.94,0.00051,7]
[321139189,1711908640266,-151.0,0.00051041,120]
[321139190,1711908640276,-1000.0,0.000518,120]
[321139191,1711908640285,-4394.57843402,0.000519,2]
[321139192,1711908640294,-34593.12246807,0.000519,2]
[321139194,1711908640304,-151.0,0.00052055,120]
[321139196,1711908640313,-290.29,0.00052246,2]
[321139198,1711908640322,-591.75,0.00052404,120]
[321139200,1711908640331,-161.37966255,0.00052601,60]
[321139202,1711908640340,-151.0,0.00052658,120]
[321139204,1711908640350,-381.04,0.00052752,2]
[321139206,1711908640359,-155.39690538,0.00052863,60]
[321139208,1711908640368,-2329.31253438,0.00052917,2]
[321139210,1711908640377,-167.81686113,0.00052917,2]
[321139212,1711908640386,-197.02803669,0.00052917,2]
[321139214,1711908640398,-17504.8,0.0005301,2]
[321139216,1711908640406,-17504.9,0.0005302,2]
[321139218,1711908640415,-17504.9,0.0005303,2]
[321139220,1711908640424,-17504.9,0.0005304,2]
[321139222,1711908640434,-17504.54,0.0005305,2]
[321139224,1711908640443,-151.0,0.00053068,120]
[321139226,1711908640453,-161.37966255,0.00053134,60]
[321139228,1711908640462,-2606.36,0.00053281,30]
[321139230,1711908640471,-150.0,0.00053424,2]
[321139232,1711908640480,-250.0,0.00053468,2]
[321139234,1711908640489,-151.0,0.00053474,2]
[321139236,1711908640499,-250.49088,0.00053474,2]
[321139238,1711908640509,-157.30690024,0.00053863,60]
[321139240,1711908640518,-268235.75500504,0.00054,2]
[321139242,1711908640527,-151.0,0.00054082,120]
[321139244,1711908640536,-167.81541102,0.00054109,60]
[321139245,1711908640546,-2005.0,0.00054313,117]
[321139247,1711908640555,-158.00876728,0.00054331,60]
[321139248,1711908640564,-302.0,0.00054373,4]
[321139250,1711908640573,-157.82,0.00054466,120]
[321139252,1711908640583,-2000.0,0.0005452,120]
[321139254,1711908640592,-170.18,0.00054537,2]
[321139256,1711908640601,-245000.0,0.00054694,2]
[321139258,1711908640610,-150.86,0.00054763,120]
[321139260,1711908640619,-157.27631021,0.00054793,4]
[321139262,1711908640628,-500.0,0.00054794,120]
[321139264,1711908640638,-503.61219481,0.00054794,120]
[321139266,1711908640648,-500.0,0.00054794,120]
[321139268,1711908640657,-326.29534495,0.00054794,120]
[321139269,1711908640666,-500.0,0.00054794,120]
[321139270,1711908640676,-500.0,0.00054794,120]
[321139271,1711908640690,-509.6528244,0.00054794,120]
[321139272,1711908640699,-508.59551364,0.00054794,120]
[321139273,1711908640709,-500.0,0.00054794,120]
[321139274,1711908640718,-500.0,0.00054794,120]
[321139275,1711908640728,-500.0,0.00054794,120]
[321139276,1711908640738,-500.0,0.00054794,120]
[321139277,1711908640747,-500.0,0.00054794,120]
[321139278,1711908640757,-500.0,0.00054794,120]
[321139279,1711908640767,-452.65285788,0.00054794,120]
[321139280,1711908640777,-500.0,0.00054794,120]
[321139281,1711908640786,-500.0,0.00054794,120]
[321139282,1711908640796,-500.0,0.00054794,120]
[321139283,1711908640806,-500.0,0.00054794,120]
[321139284,1711908640815,-500.0,0.00054794,120]
[321139285,1711908640824,-541.55216256,0.00054794,120]
[321139286,1711908640834,-511.30807848,0.00054794,120]
[321139287,1711908640843,-642.92215254,0.00054794,120]
[321139288,1711908640853,-500.0,0.00054794,120]
[321139289,1711908640862,-500.0,0.00054794,120]
[321139290,1711908640870,-500.0,0.00054794,120]
[321139291,1711908640879,-307.89685706,0.00054794,120]
[321139292,1711908640889,-503.13182505,0.00054794,120]
[321139293,1711908640898,-500.0,0.00054794,120]
[321139294,1711908640907,-500.0,0.00054794,120]
[321139295,1711908640916,-500.0,0.00054794,120]
[321139296,1711908640925,-500.0,0.00054794,120]
[321139297,1711908640934,-500.0,0.00054794,120]
[321139298,1711908640943,-500.0,0.00054794,120]
[321139299,1711908640952,-500.0,0.00054794,120]
[321139300,1711908640961,-500.0,0.00054794,120]
[321139301,1711908640970,-500.0,0.00054794,120]
[321139302,1711908640980,-511.83933361,0.00054794,120]
[321139303,1711908640989,-500.0,0.00054794,120]
[321139304,1711908640999,-500.0,0.00054794,120]
[321139305,1711908641008,-500.0,0.00054794,120]
[321139306,1711908641018,-500.0,0.00054794,120]
[321139307,1711908641027,-500.0,0.00054794,120]
[321139308,1711908641036,-500.0,0.00054794,120]
[321139309,1711908641045,-500.0,0.00054794,120]
[321139310,1711908641055,-500.0,0.00054794,120]
[321139311,1711908641064,-500.0,0.00054794,120]
[321139312,1711908641073,-500.0,0.00054794,120]
[321139313,1711908641082,-500.0,0.00054794,120]
[321139314,1711908641091,-250.90174539,0.00054794,120]
[321139315,1711908641103,-500.0,0.00054794,120]
[321139316,1711908641112,-500.0,0.00054794,120]
[321139317,1711908641122,-500.0,0.00054794,120]
[321139318,1711908641131,-500.0,0.00054794,120]
[321139319,1711908641140,-500.0021,0.00054794,120]
[321139320,1711908641151,-500.0,0.00054794,120]
[321139321,1711908641160,-500.0,0.00054794,120]
[321139322,1711908641169,-500.0,0.00054794,120]
[321139323,1711908641178,-500.0,0.00054794,120]
[321139324,1711908641187,-500.0,0.00054794,120]
[321139325,1711908641197,-500.0,0.00054794,120]
[321139326,1711908641206,-637.35592563,0.00054794,120]
[321139327,1711908641215,-500.0,0.00054794,120]
[321139328,1711908641224,-403.40886596,0.00054794,120]
[321139329,1711908641233,-470.13,0.00054794,120]
[321139330,1711908641242,-585.60028027,0.00054794,120]
[321139331,1711908641251,-500.0,0.00054794,120]
[321139332,1711908641261,-500.0,0.00054794,120]
[321139333,1711908641270,-500.0,0.00054794,120]
[321139334,1711908641278,-500.0,0.00054794,120]
[321139335,1711908641288,-500.0,0.00054794,120]
[321139336,1711908641297,-500.0,0.00054794,120]
[321139337,1711908641306,-500.0,0.00054794,120]
[321139338,1711908641315,-500.0,0.00054794,120]